fUSD/lending_fUSD_20240808
["ID","MTS","AMOUNT","RATE_DAILY","PERIOD"]
[334455269,1723115443781,-155.0,0.0001355,2]
[334455270,1723115443791,-194.05270855,0.0001355,2]
[334455271,1723115443801,-1080.1867,0.000136,2]
[334455272,1723115443810,-174.14,0.00013699,2]
[334455273,1723115443819,-2500.0,0.00013699,2]
[334455274,1723115443829,-5000.0,0.00013699,2]
[334455275,1723115443838,-6491.47481727,0.000137,2]
[334455285,1723115446282,-2079.33106217,0.00011898,2]
[334455286,1723115446355,-264.56933083,0.00011898,2]
[334455287,1723115446365,-263.66394453,0.0001331,2]
[334455288,1723115446374,-6471.76672464,0.000137,2]
[334455289,1723115446562,-264.56933083,0.000137,2]
[334455295,1723115598064,500.0,0.00026459,120]
[334455296,1723115605924,201.801744,0.00026673,120]
[334455297,1723115638169,349.0,0.0001355,50]
[334455298,1723115803105,500.0,0.00026,120]
[334455299,1723115822790,474.0,0.00027,120]
[334455303,1723116198652,500.0,0.00026459,120]
[334455310,1723116633157,-175.94570773,0.00010859,2]
[334455311,1723116633170,-385.0,0.00010958,2]
[334455312,1723116633182,-670.98,0.00010959,2]
[334455313,1723116633192,-300.0,0.00010999,2]
[334455314,1723116633204,-150.0,0.00010999,2]
[334455315,1723116633214,-227422.72741535,0.00011,2]
[334455316,1723116633228,-24531.7130242,0.00011,2]
[334455317,1723116633304,-1006.53873054,0.00011,2]
[334455318,1723116633318,-20894.93636419,0.00011,2]
[334455319,1723116633329,-215.74,0.00011,2]
[334455320,1723116633341,-998.07,0.00011591,2]
[334455321,1723116633352,-150.0,0.00012044,2]
[334455322,1723116633363,-300.0,0.00012099,2]
[334455324,1723116633375,-10000.0,0.00012737,2]
[334455326,1723116633387,-23900.0,0.00012826,2]
[334455327,1723116633398,-499.99,0.00012826,2]
[334455328,1723116633409,-181.33,0.00012844,2]
[334455329,1723116633420,-824.37,0.00012917,2]
[334455330,1723116633431,-1462.11,0.00012971,2]
[334455331,1723116633442,-3290.48,0.00013228,2]
[334455332,1723116633453,-200.0,0.00013231,2]
[334455333,1723116633465,-1000.0,0.00013341,2]
[334455334,1723116633476,-4186.18,0.00013341,2]
[334455335,1723116633487,-250.0,0.00013372,2]
[334455336,1723116633499,-178.44,0.00013387,2]
[334455337,1723116633517,-3159.52,0.00013394,2]
[334455338,1723116633528,-269.44,0.00013398,2]
[334455339,1723116633539,-158.75722045,0.00013399,2]
[334455340,1723116633548,-996.85936505,0.00013479,2]
[334455341,1723116633558,-723.15324613,0.00013479,2]
[334455342,1723116633568,-686.78056419,0.00013489,2]
[334455343,1723116633578,-649.64235225,0.00013499,2]
[334455344,1723116633587,-454.42959721,0.0001351,2]
[334455345,1723116633597,-407.85618641,0.0001353,2]
[334455346,1723116633607,-531.8656472,0.00013561,2]
[334455347,1723116633616,-600.23313961,0.00013579,2]
[334455348,1723116633868,-164.24740508,0.00013579,2]
[334455349,1723116633890,-155.15647548,0.00013648,2]
[334455350,1723116633904,-437.30400732,0.00013648,2]
[334455351,1723116633914,-159.48875,0.00013648,2]
[334455352,1723116633923,-228.73687271,0.00013648,2]
[334455353,1723116633933,-206.6215903,0.00013648,2]
[334455354,1723116633942,-1480.47,0.00013658,2]
[334455355,1723116633952,-250.0,0.00013658,2]
[334455356,1723116633962,-5000.0,0.0001367,2]
[334455357,1723116633971,-218.75775647,0.0001367,2]
[334455358,1723116633981,-155.0,0.0001367,2]
[334455359,1723116633991,-155.0,0.0001367,2]
[334455360,1723116634000,-157.97,0.00013675,2]
[334455361,1723116634017,-155.0,0.00013698,2]
[334455362,1723116634026,-400.0,0.00013698,2]
[334455363,1723116634035,-155.0,0.00013698,2]
[334455364,1723116634045,-200.0,0.00013699,2]
[334455365,1723116634054,-2751.0,0.00013699,2]
[334455366,1723116634064,-500.0,0.00013699,2]
[334455367,1723116634073,-174.14,0.00013699,2]
[334455368,1723116634083,-155.1553833,0.00013699,2]
[334455369,1723116634092,-401.04153557,0.00013699,2]
[334455370,1723116634101,-18458.14276584,0.000137,2]
[334455371,1723116634111,-3000.0,0.000137,2]
[334455372,1723116634120,-9267.85011549,0.0001372,2]
[334455373,1723116634129,-9267.85011549,0.0001372,2]
[334455374,1723116634139,-210.98862759,0.0001372,2]
[334455375,1723116634148,-155.0,0.0001372,2]
[334455376,1723116634158,-182.93,0.00013744,2]
[334455377,1723116634167,-353.28414619,0.00013789,2]
[334455378,1723116634176,-207.36545677,0.00013789,2]
[334455379,1723116634186,-984.015,0.00013799,2]
[334455380,1723116634195,-155.0,0.00013799,2]
[334455381,1723116634205,-29670.1069928,0.000138,3]
[334455382,1723116634215,-182.93,0.00013812,2]
[334455383,1723116634224,-998.07,0.00013855,2]
[334455384,1723116634234,-9900.60324222,0.00013879,2]
[334455385,1723116634243,-14835.0534964,0.00013889,3]
[334455386,1723116634253,-153.34,0.00013973,2]
[334455387,1723116634263,-168.76,0.00013973,2]
[334455388,1723116634272,-443.0,0.00013973,2]
[334455389,1723116634281,-1250.31751435,0.00013979,2]
[334455390,1723116634291,-1381.85204632,0.00013979,2]
[334455391,1723116634304,-1412.30627252,0.00013986,2]
[334455392,1723116634314,-1257.03046369,0.00013989,2]
[334455393,1723116634324,-1080.1867,0.00014012,2]
[334455394,1723116634335,-789.57133795,0.00014086,2]
[334455395,1723116634344,-287.46,0.00014092,2]
[334455396,1723116634354,-439.89968088,0.00014261,2]
[334455397,1723116634364,-14835.0534964,0.00014347,3]
[334455398,1723116634375,-158.94847056,0.00014451,2]
[334455399,1723116634386,-446.0,0.00014457,2]
[334455400,1723116634395,-611.158,0.00014457,2]
[334455401,1723116634405,-810.0,0.00014457,2]
[334455402,1723116634415,-1075.0,0.00014457,2]
[334455403,1723116634424,-1344.0,0.00014457,2]
[334455404,1723116634434,-155.0,0.00014519,2]
[334455405,1723116634443,-1405.63014086,0.00014789,2]
[334455406,1723116634453,-721.0,0.000149,2]
[334455407,1723116634463,-336.0,0.000149,2]
[334455408,1723116634472,-7476.2555,0.00014968,2]
[334455409,1723116634482,-7000.0,0.00014988,3]
[334455410,1723116634491,-155.70110956,0.00015,2]
[334455411,1723116634501,-155.0,0.00015,2]
[334455412,1723116634512,-1230.0,0.00015,2]
[334455413,1723116634522,-5097.0,0.00015,2]
[334455414,1723116634532,-1000.0,0.00015009,2]
[334455415,1723116634541,-158.75722044,0.00015316,2]
[334455416,1723116634551,-14835.0534964,0.00015418,3]
[334455417,1723116634561,-287.46,0.00015854,2]
[334455418,1723116634571,-157.97,0.00015955,2]
[334455419,1723116634580,-998.07,0.00016119,2]
[334455420,1723116634590,-4003.8534,0.00016341,2]
[334455421,1723116634600,-14835.0534964,0.00016431,3]
[334455422,1723116634610,-1763.06943657,0.000165,2]
[334455423,1723116634619,-353.28414616,0.00016567,2]
[334455424,1723116634629,-1000.0,0.00016676,2]
[334455425,1723116634638,-155.05279194,0.00016799,2]
[334455426,1723116634647,-14835.0534964,0.0001687,3]
[334455427,1723116634657,-7492.86931984,0.0001687,3]
[334455437,1723116638199,-280.37204672,0.00013489,2]
[334455438,1723116638211,-762.38219062,0.00013489,2]
[334455439,1723116638220,-120.30420938,0.0001687,3]
[334455444,1723116638356,-6199.9999849,0.0001687,3]
[334455565,1723116642640,-257.20821351,0.00013579,2]
[334455625,1723116643722,-411.76484184,0.00013579,2]
[334455626,1723116643733,-4331.02694465,0.00013579,2]
[334455627,1723116643744,-789.57133795,0.00014086,2]
[334455628,1723116643754,-407.85618641,0.00016569,2]
[334455629,1723116643766,-2916.42974048,0.0001687,3]
[334455630,1723116643775,-7514.4164049,0.0001688,2]
[334455631,1723116643790,-323.9163485,0.0001688,2]
[334455632,1723116643802,-5768.03301831,0.0001688,2]
[334455633,1723116643815,-13045.57678764,0.0001688,2]
[334455634,1723116643825,-155.0,0.00016948,2]
[334455635,1723116643835,-33459.2065091,0.00016966,3]
[334455636,1723116643845,-873.96264542,0.00016974,2]
[334455637,1723116643854,-24985.68398721,0.00016976,3]
[334455638,1723116643866,-8632.58788354,0.00016976,3]
[334455640,1723116646341,-686.78056419,0.00013483,2]
[334455641,1723116646351,-1874.06416438,0.00016976,3]
[334455644,1723116647975,-718.7499,0.00016976,3]
[334455645,1723116647986,-481.61185414,0.00016976,3]
[334455646,1723116647998,-3877.66184382,0.00016976,3]
[334455647,1723116799368,500.0,0.00024932,120]
[334455651,1723117086176,175.55,0.0002693,120]
[334455660,1723117399232,500.0,0.00026502,120]
[334455662,1723117547279,172.47,0.00025073,120]
[334455672,1723117832540,-155.48,0.00013232,2]
[334455673,1723117832550,-174.14,0.00013699,2]
[334455674,1723117832560,-3403.27150347,0.00013899,2]
[334455675,1723117832570,-153.34,0.00013973,2]
[334455676,1723117832579,-168.76,0.00013973,2]
[334455677,1723117832588,-4817.25972046,0.00013979,2]
[334455678,1723117832599,-300.0,0.00013988,2]
[334455679,1723117832609,-2835.14286804,0.00013989,2]
[334455680,1723117832619,-9267.85011549,0.00014667,2]
[334455681,1723117832628,-555.0,0.00014765,2]
[334455682,1723117832637,-810.0,0.00014765,2]
[334455683,1723117832647,-1344.0,0.00014765,2]
[334455684,1723117832661,-446.0,0.00014765,2]
[334455685,1723117832670,-9267.85011549,0.00014789,2]
[334455686,1723117832680,-2341.05923349,0.00014789,2]
[334455687,1723117832690,-12492.786,0.00014888,2]
[334455688,1723117832701,-150.0,0.00014986,2]
[334455689,1723117832711,-499.99,0.00014986,2]
[334455691,1723117832722,-210.93187409,0.00014999,2]
[334455692,1723117832732,-1168.0,0.00015,2]
[334455693,1723117832746,-1846.970445,0.00015,2]
[334455694,1723117832756,-870.65,0.00015277,2]
[334455695,1723117832769,-150.0,0.00015998,2]
[334455697,1723117832792,-35715.85010103,0.00015999,2]
[334455699,1723117832801,-200.0,0.0001654,2]
[334455701,1723117832811,-407.85618641,0.00016591,2]
[334455703,1723117832821,-150.99,0.00016654,2]
[334455705,1723117832832,-5949.27,0.00016664,2]
[334455707,1723117832842,-220.31,0.00016664,4]
[334455709,1723117832852,-23812.55,0.00016671,2]
[334455711,1723117832862,-10000.0,0.00016671,2]
[334455713,1723117832872,-172.47,0.00016715,2]
[334455714,1723117832881,-3000.0,0.000168,2]
[334455715,1723117832891,-5000.0,0.00016949,2]
[334455716,1723117832900,-298.91848984,0.00016953,2]
[334455717,1723117832909,-600.0,0.00016984,2]
[334455718,1723117832919,-400.0,0.00017223,2]
[334455719,1723117832928,-328.02726292,0.00017259,2]
[334455720,1723117832938,-298.4528479,0.00017399,2]
[334455721,1723117832948,-250.0,0.00017472,2]
[334455722,1723117832958,-870.65,0.00017541,2]
[334455723,1723117832967,-159.12,0.00017551,2]
[334455724,1723117832977,-459.8606261,0.00017636,2]
[334455725,1723117832987,-801.182,0.00017765,2]
[334455726,1723117832997,-1344.0,0.00017765,2]
[334455727,1723117833006,-406.267,0.00017765,2]
[334455728,1723117833016,-155.0,0.00017782,2]
[334455729,1723117833025,-231.98162547,0.00017898,2]
[334455730,1723117833035,-175.55,0.00017953,2]
[334455731,1723117833046,-308.16874741,0.00018,2]
[334455732,1723117833056,-676.11936882,0.00018,2]
[334455733,1723117833066,-255.04998077,0.00018081,2]
[334455734,1723117833075,-649.64235225,0.00018176,2]
[334455735,1723117833085,-649.64235225,0.00018176,2]
[334455736,1723117833094,-157.97,0.00018234,2]
[334455737,1723117833105,-155.70110956,0.00018499,2]
[334455738,1723117833114,-686.78056419,0.00018499,2]
[334455739,1723117833124,-155.2390043,0.00018499,2]
[334455740,1723117833134,-155.0,0.00018547,2]
[334455741,1723117833144,-155.0,0.00018547,2]
[334455742,1723117833153,-172.47,0.00018805,2]
[334455743,1723117833163,-500.0,0.00018873,2]
[334455744,1723117833172,-600.0,0.00019107,2]
[334455745,1723117833182,-15879.52170819,0.00019251,2]
[334455746,1723117833191,-181.33,0.00019266,2]
[334455747,1723117833202,-3000.0,0.000193,2]
[334455748,1723117833211,-2500.0,0.00019351,2]
[334455749,1723117833221,-400.0,0.00019376,2]
[334455750,1723117833232,-774.35554957,0.00019642,2]
[334455751,1723117833242,-870.65,0.00019805,2]
[334455752,1723117833252,-158.75722044,0.00019818,2]
[334455753,1723117833262,-15879.52170816,0.00019879,2]
[334455754,1723117833271,-21121.5805,0.000199,2]
[334455755,1723117833284,-220.7,0.00019918,2]
[334455756,1723117833296,-155.0,0.0002,2]
[334455757,1723117833306,-17831.98779443,0.0002,2]
[334455758,1723117833321,-6292.16901067,0.0002,2]
[334455759,1723117833331,-150.0,0.0002,2]
[334455760,1723117833341,-2024.24992124,0.000202,2]
[334455761,1723117833351,-834.97,0.00020219,2]
[334455762,1723117833361,-420.82,0.00020219,2]
[334455763,1723117833371,-834.97,0.00020219,2]
[334455764,1723117833381,-611.22,0.00020219,2]
[334455765,1723117833391,-707.65,0.00020219,2]
[334455766,1723117833401,-443.0,0.00020447,2]
[334455767,1723117833411,-15879.52170816,0.00020506,2]
[334455768,1723117833420,-157.97,0.00020513,2]
[334455769,1723117833430,-500.0,0.0002066,2]
[334455770,1723117833439,-1344.0,0.00020765,2]
[334455771,1723117833449,-172.47,0.00020894,2]
[334455772,1723117833459,-175.55,0.00020946,2]
[334455773,1723117833468,-151.0,0.00020989,2]
[334455774,1723117833478,-151.0,0.00020989,2]
[334455775,1723117833489,-151.0,0.00020989,2]
[334455776,1723117833498,-151.0,0.00020989,2]
[334455777,1723117833508,-225.66587792,0.00021,2]
[334455778,1723117833517,-158.75722044,0.00021089,2]
[334455779,1723117833527,-600.0,0.0002123,2]
[334455780,1723117833546,-400.0,0.00021529,2]
[334455781,1723117833556,-3000.0,0.000218,2]
[334455782,1723117833567,-151.0,0.00021899,2]
[334455783,1723117833577,-151.0,0.00021899,2]
[334455784,1723117833588,-151.0,0.00021899,2]
[334455785,1723117833597,-151.0,0.00021899,2]
[334455786,1723117833607,-502.4,0.00021918,2]
[334455787,1723117833617,-378.51,0.00021918,2]
[334455788,1723117833626,-150.0,0.00021918,2]
[334455789,1723117833636,-795.94378338,0.00022,2]
[334455790,1723117833645,-371.95167885,0.00022,2]
[334455791,1723117833655,-1600.0,0.00022,6]
[334455792,1723117833669,-151.32101212,0.00022044,2]
[334455793,1723117833679,-870.65,0.00022069,2]
[334455794,1723117833691,-153.34,0.00022174,2]
[334455795,1723117833701,-158.75722044,0.00022359,2]
[334455796,1723117833711,-11495.0,0.000224,5]
[334455797,1723117833721,-1000.0,0.00022466,2]
[334455798,1723117833731,-150.0,0.00022495,2]
[334455799,1723117833743,-936.32238204,0.00022619,2]
[334455800,1723117833754,-989.0,0.000227,5]
[334455801,1723117833764,-172.47,0.00022983,2]
[334455802,1723117833773,-2964.1525851,0.00023,2]
[334455803,1723117833927,-1800.0,0.00021134,2]
[334455804,1723117833940,-4819.72288881,0.00021134,2]
[334455805,1723117833951,-4843.30926104,0.00021134,2]
[334455806,1723117838420,-2341.05923349,0.00014789,2]
[334455807,1723117838430,-155.0,0.00018529,2]
[334455808,1723117838440,-870.01017206,0.00021134,2]
[334455809,1723117838451,-777.16020434,0.00021134,2]
[334455810,1723117838476,-2769.31918191,0.00021134,2]
[334455811,1723117838486,-13800.09749733,0.00021762,2]
[334455812,1723117838497,-1014.6173005,0.00021762,2]
[334455813,1723117838586,-1064.80691033,0.00021762,2]
[334455814,1723117838596,-401.62740108,0.00023,2]
[334455815,1723117838692,-1080.68345125,0.00023,2]
[334455816,1723117838800,-1544.59791416,0.00023,2]
[334455822,1723117840346,-701.66503495,0.00023,2]
[334455823,1723117840475,-1209.49724686,0.00023,2]
[334455824,1723117840888,-577.86537042,0.00023,2]
[334455826,1723117840901,-1765.19999999,0.00023,2]
[334455831,1723117840915,-2015.94855758,0.00023,2]
[334455834,1723117840928,-28094.63863525,0.00023,2]
[334455837,1723117841149,-300.0,0.00023,2]
[334456053,1723117843368,-7517.25364328,0.00022389,2]
[334456056,1723117843380,-823.52658831,0.00022389,2]
[334456102,1723117844052,-7538.74147657,0.00022389,2]
[334456103,1723117844062,-23297.25952343,0.00023,2]
[334456104,1723117844081,-895.88804481,0.00023,2]
[334456107,1723117846542,-696.52,0.0002086,2]
[334456108,1723117846552,-519.55779227,0.00023,2]
[334456109,1723117846596,-6751.79144901,0.00023,2]
[334456110,1723117846811,-1193.28658012,0.00023,2]
[334456145,1723117996629,500.0,0.00026502,120]
[334456146,1723118019366,242.67,0.00026737,120]
[334456152,1723118596865,500.0,0.00026737,120]
[334456153,1723118675454,650.0,0.00027,120]
[334456178,1723119031704,-550.0,0.00013,2]
[334456181,1723119031714,-161.22,0.00013973,2]
[334456184,1723119031723,-351.43487109,0.0001413,2]
[334456187,1723119031735,-126.56512891,0.0001413,2]
[334456189,1723119031744,-600.0,0.00015,2]
[334456191,1723119031753,-1040.0,0.00015367,2]
[334456192,1723119031762,-1143.0,0.00015367,2]
[334456194,1723119031771,-171.315,0.00015367,2]
[334456195,1723119031780,-478.0,0.0001571,2]
[334456197,1723119031789,-300.0,0.00016362,2]
[334456198,1723119031798,-706.06,0.00016364,2]
[334456200,1723119031807,-478.0,0.0001728,2]
[334456202,1723119031819,-152.74,0.00017534,2]
[334456204,1723119031829,-1405.63014086,0.00017636,2]
[334456206,1723119031839,-420.0,0.00017883,2]
[334456208,1723119031848,-398.29322933,0.00017931,2]
[334456210,1723119031858,-398.29322933,0.00018165,2]
[334456212,1723119031867,-2751.0,0.00018181,2]
[334456214,1723119031876,-500.0,0.00018198,2]
[334456216,1723119031886,-200.0,0.00018295,2]
[334456218,1723119031895,-500.58968389,0.00018308,2]
[334456220,1723119031904,-2152.26,0.00018342,2]
[334456221,1723119031913,-23900.0,0.00018366,2]
[334456222,1723119031923,-250.0,0.00018386,2]
[334456223,1723119031932,-378.0,0.000184,2]
[334456224,1723119031941,-398.29322933,0.00018427,2]
[334456225,1723119031950,-150.0,0.00018427,2]
[334456226,1723119031959,-2774.99,0.00018445,2]
[334456227,1723119031968,-15821.91955845,0.00018499,2]
[334456228,1723119031980,-468.09747962,0.00018499,2]
[334456229,1723119031995,-1245.568807,0.00018499,2]
[334456230,1723119032006,-16967.09145776,0.00018499,2]
[334456231,1723119032015,-706.06,0.00018628,2]
[334456232,1723119032024,-398.29322933,0.00018659,2]
[334456233,1723119032036,-179.69,0.00018744,2]
[334456234,1723119032045,-478.0,0.0001886,2]
[334456236,1723119032055,-240.0,0.00018895,2]
[334456238,1723119032064,-594.67140178,0.00018898,2]
[334456240,1723119032075,-500.0,0.00018914,2]
[334456242,1723119032084,-1368.7,0.00019028,2]
[334456244,1723119032094,-559.19,0.00019105,2]
[334456246,1723119032104,-398.29322933,0.00019108,2]
[334456248,1723119032115,-722.91386153,0.0001924,2]
[334456250,1723119032124,-210.98862759,0.0001924,2]
[334456252,1723119032134,-760.0,0.00019273,2]
[334456254,1723119032143,-454.20716905,0.00019319,2]
[334456256,1723119032152,-158.94847056,0.00019319,2]
[334456258,1723119032162,-9892.07045311,0.00019339,2]
[334456260,1723119032173,-1699.49722843,0.00019339,2]
[334456262,1723119032184,-1506.92253109,0.00019339,2]
[334456264,1723119032195,-821.84153478,0.00019339,2]
[334456266,1723119032207,-3603.53690901,0.00019339,2]
[334456269,1723119032219,-945.65134358,0.00019339,2]
[334456270,1723119032228,-25974.304764,0.00019339,2]
[334456272,1723119032239,-2758.995236,0.00019339,2]
[334456274,1723119032250,-4.18568688,0.00019378,2]
[334456276,1723119032261,-394.10754245,0.00019378,2]
[334456278,1723119032270,-155.0,0.00019398,2]
[334456280,1723119032279,-150.49558806,0.00019398,2]
[334456282,1723119032290,-16.24204467,0.00019398,2]
[334456284,1723119032299,-173.68800982,0.00019398,2]
[334456286,1723119032308,-209.84086891,0.00019451,2]
[334456288,1723119032317,-48.8811599,0.00019451,2]
[334456290,1723119032328,-109.48999798,0.00019451,2]
[334456292,1723119032338,-160.42160878,0.00019451,2]
[334456294,1723119032348,-261.03783753,0.00019451,2]
[334456296,1723119032358,-180.40281006,0.00019451,2]
[334456298,1723119032367,-206.61468022,0.00019544,2]
[334456315,1723119037613,-3295.73985537,0.00017874,2]
[334456316,1723119037624,-853.08727691,0.00017874,2]
[334456317,1723119037636,-3879.31648734,0.00017874,2]
[334456318,1723119037647,-1765.0,0.00017874,2]
[334456319,1723119037718,-206.85638038,0.00017874,2]
[334456320,1723119037727,-628.66127068,0.00019045,3]
[334456321,1723119037736,-367.65528862,0.00019295,2]
[334456322,1723119037746,-169.84351184,0.00019398,2]
[334456323,1723119037755,-155.0,0.00019398,2]
[334456324,1723119037764,-301.28450104,0.00019451,2]
[334456325,1723119037774,-257.03900718,0.00019451,2]
[334456326,1723119037784,-380.38531978,0.00019544,2]
[334456327,1723119037793,-160.42806335,0.00019599,2]
[334456328,1723119037802,-160.43062196,0.00019599,2]
[334456329,1723119037812,-617.83929837,0.00019599,2]
[334456330,1723119037822,-302.09491161,0.00019599,2]
[334456331,1723119037831,-303.64820265,0.00019599,2]
[334456332,1723119037840,-203.65019081,0.00019599,2]
[334456336,1723119037850,-177.25801477,0.00019599,2]
[334456339,1723119038046,-367.65528862,0.00019655,2]
[334456341,1723119038056,-170.88488039,0.00019725,2]
[334456343,1723119038065,-7063.81624225,0.00019725,2]
[334456345,1723119038077,-2204.03387324,0.00019725,2]
[334456347,1723119038087,-255.72134002,0.00019725,2]
[334456349,1723119038097,-155.59379774,0.00019725,2]
[334456351,1723119038106,-196.92576771,0.00019725,2]
[334456353,1723119038119,-367.65528862,0.00019826,2]
[334456355,1723119038128,-1497.89879292,0.0002,2]
[334456357,1723119038140,-553.75252567,0.0002,2]
[334456359,1723119038155,-554.28532541,0.0002,2]
[334456361,1723119038165,-325.83467459,0.0002,2]
[334456363,1723119038177,-955.97027776,0.0002,2]
[334456365,1723119038188,-4936.4916975,0.0002,2]
[334456368,1723119038200,-4112.77782963,0.0002,2]
[334456370,1723119038211,-941.43031319,0.0002,2]
[334456372,1723119038223,-451.57864314,0.0002,2]
[334456490,1723119039575,-174.10715118,0.00019725,2]
[334456492,1723119039585,-6107.90435862,0.0002,2]
[334456494,1723119039595,-367.65528862,0.0002,2]
[334456496,1723119039605,-155.0,0.00020109,2]
[334456498,1723119039614,-2394.55721682,0.0002028,2]
[334456500,1723119039629,-6677.78068299,0.0002028,2]
[334456502,1723119039638,-501.06413735,0.00020335,2]
[334456504,1723119039647,-500.0,0.0002038,2]
[334456506,1723119039657,-478.0,0.0002043,2]
[334456508,1723119039667,-367.65528862,0.00020447,2]
[334456510,1723119039677,-6292.16901067,0.00020588,2]
[334456513,1723119039687,-367.65528862,0.0002075,2]
[334456514,1723119039697,-9072.33789977,0.00020793,2]
[334456516,1723119039706,-155.0,0.00020831,2]
[334456518,1723119039716,-624.15417638,0.00020831,2]
[334456520,1723119039726,-706.06,0.00020892,2]
[334456522,1723119039735,-5401.5400912,0.00020899,2]
[334456524,1723119039745,-1763.4763965,0.00020999,2]
[334456526,1723119039756,-225.66587792,0.00021,2]
[334456528,1723119039765,-367.65528862,0.00021007,2]
[334456531,1723119039775,-367.65528862,0.0002121,2]
[334456533,1723119039785,-240.0,0.00021257,2]
[334456535,1723119039794,-9072.33789977,0.00021307,2]
[334456537,1723119039803,-823.0,0.00021361,2]
[334456539,1723119039813,-242.67,0.00021389,2]
[334456541,1723119039822,-153.52,0.00021413,2]
[334456543,1723119039832,-500.0,0.00021622,2]
[334456544,1723119039841,-367.65528862,0.0002163,2]
[334456546,1723119039851,-367.65528862,0.00021665,2]
[334456548,1723119039862,-760.0,0.00021682,2]
[334456550,1723119039871,-9072.33789977,0.0002182,2]
[334456553,1723119039883,-167.0,0.00021837,2]
[334456555,1723119039893,-1000.0,0.000219,2]
[334456557,1723119039903,-19243.35014038,0.00021916,4]
[334456559,1723119039912,-315.42,0.00021918,2]
[334456561,1723119039922,-418.66,0.00021918,2]
[334456563,1723119039932,-150.0,0.00021918,2]
[334456565,1723119039941,-371.95167885,0.00022,2]
[334456567,1723119039951,-478.0,0.00022,2]
[334456569,1723119039961,-150.66623924,0.00022044,2]
[334456571,1723119039970,-367.65528862,0.00022089,2]
[334456573,1723119039979,-1301.2189,0.000223,2]
[334456575,1723119039989,-151.0,0.00022333,7]
[334456577,1723119039998,-9072.33789977,0.00022333,2]
[334456579,1723119040007,-367.65528862,0.00022347,2]
[334456581,1723119040017,-14647.1434434,0.0002239,4]
[334456583,1723119040027,-151.0,0.0002239,7]
[334456585,1723119040040,-151.0,0.0002239,7]
[334456587,1723119040050,-151.0,0.0002239,7]
[334456589,1723119040059,-500.0,0.000224,2]
[334456591,1723119040068,-500.0,0.000224,2]
[334456593,1723119040079,-500.0,0.000224,2]
[334456595,1723119040089,-500.0,0.000224,2]
[334456597,1723119040105,-500.0,0.000224,2]
[334456599,1723119040122,-500.0,0.000224,2]
[334456600,1723119040131,-500.0,0.000224,2]
[334456602,1723119040141,-500.0,0.000224,2]
[334456604,1723119040151,-500.0,0.000224,2]
[334456606,1723119040160,-500.0,0.000224,2]
[334456608,1723119040169,-500.0,0.000224,2]
[334456610,1723119040179,-500.0,0.000224,2]
[334456612,1723119040188,-500.0,0.000224,2]
[334456614,1723119040197,-500.0,0.000224,2]
[334456616,1723119040208,-500.0,0.000224,2]
[334456618,1723119040218,-500.0,0.000224,2]
[334456620,1723119040227,-500.0,0.000224,2]
[334456622,1723119040238,-500.0,0.000224,2]
[334456624,1723119040247,-500.0,0.000224,2]
[334456626,1723119040257,-500.0,0.000224,2]
[334456628,1723119040266,-500.0,0.000224,2]
[334456630,1723119040276,-500.0,0.000224,2]
[334456632,1723119040285,-500.0,0.000224,2]
[334456634,1723119040295,-500.0,0.000224,2]
[334456636,1723119040304,-500.0,0.000224,2]
[334456638,1723119040314,-500.0,0.000224,2]
[334456640,1723119040323,-61.8313129,0.000224,2]
[334456650,1723119040487,-300.0,0.000224,2]
[334456651,1723119040887,-138.1686871,0.000224,2]
[334456653,1723119040897,-500.0,0.000224,2]